[Event "Titled Tuesday Blitz July 4 Late 2023"]
[White "a-z30"]
[Black "Vaglio Munoz, Jaime"]
[BlackFideId "6500145"]
[WhiteElo "2467"]
[BlackElo "2307"]
[Result "1-0"]
[Round "10"]
[TimeControl "180+2"]
[Date "2023.07.04"]
[WhiteClock "0:01:24"]
[BlackClock "0:01:30"]
[Board "90"]

1. d3 {[%clk 0:03:00]}  b5 {[%clk 0:02:57]} 2. Nf3 {[%clk 0:03:01]}  Bb7 {[%clk 0:02:57]} 3. g3 {[%clk 0:03:02]}  Bxf3 {[%clk 0:02:55]} 4. exf3 {[%clk 0:03:01]}  c6 {[%clk 0:02:55]} 5. f4 {[%clk 0:03:00]}  e6 {[%clk 0:02:55]} 6. Bg2 {[%clk 0:02:55]}  g6 {[%clk 0:02:55]} 7. O-O {[%clk 0:02:53]}  Bg7 {[%clk 0:02:53]} 8. Nd2 {[%clk 0:02:53]}  Ne7 {[%clk 0:02:53]} 9. Nf3 {[%clk 0:02:52]}  O-O {[%clk 0:02:51]} 10. c3 {[%clk 0:02:52]}  a5 {[%clk 0:02:48]} 11. d4 {[%clk 0:02:49]}  a4 {[%clk 0:02:43]} 12. a3 {[%clk 0:02:45]}  d6 {[%clk 0:02:41]} 13. Re1 {[%clk 0:02:43]}  d5 {[%clk 0:02:09]} 14. h4 {[%clk 0:02:42]}  h5 {[%clk 0:02:06]} 15. Bh3 {[%clk 0:02:35]}  Nd7 {[%clk 0:02:06]} 16. Ng5 {[%clk 0:02:30]}  Nf5 {[%clk 0:02:05]} 17. g4 {[%clk 0:02:29]}  hxg4 {[%clk 0:02:04]} 18. Bxg4 {[%clk 0:02:26]}  Nxh4 {[%clk 0:02:00]} 19. Re3 {[%clk 0:02:03]}  Nf5 {[%clk 0:01:59]} 20. Rh3 {[%clk 0:02:01]}  Nf6 {[%clk 0:01:59]} 21. Bxf5 {[%clk 0:01:50]}  exf5 {[%clk 0:01:58]} 22. Qf3 {[%clk 0:01:41]}  Re8 {[%clk 0:01:57]} 23. Be3 {[%clk 0:01:36]}  Ng4 {[%clk 0:01:56]} 24. Qh1 {[%clk 0:01:29]}  f6 {[%clk 0:01:48]} 25. Rh8+ {[%clk 0:01:26]}  Bxh8 {[%clk 0:01:30]} 26. Qh7+ {[%clk 0:01:24]}  Kf8 {[%clk 0:01:30]} 27. Qf7# {[%clk 0:01:24]} 1-0


[Site "https://www.chess.com"]

[Event "Titled Tuesday Blitz July 4 Late 2023"]
[White "Kostiukov, Alexandr"]
[Black "Luong Phuong Hanh"]
[WhiteFideId "14108100"]
[BlackFideId "12401013"]
[WhiteElo "2300"]
[BlackElo "2458"]
[Result "0-1"]
[Round "10"]
[TimeControl "180+2"]
[Date "2023.07.04"]
[WhiteClock "0:00:23"]
[BlackClock "0:01:06"]
[Board "91"]

1. g3 {[%clk 0:02:57]}  e5 {[%clk 0:02:57]} 2. c4 {[%clk 0:02:55]}  Nf6 {[%clk 0:02:56]} 3. Bg2 {[%clk 0:02:55]}  c6 {[%clk 0:02:56]} 4. d4 {[%clk 0:02:54]}  e4 {[%clk 0:02:56]} 5. Nc3 {[%clk 0:02:52]}  d5 {[%clk 0:02:56]} 6. cxd5 {[%clk 0:02:52]}  cxd5 {[%clk 0:02:57]} 7. Bg5 {[%clk 0:02:52]}  Nc6 {[%clk 0:02:56]} 8. Nh3 {[%clk 0:02:52]}  Be7 {[%clk 0:02:56]} 9. Nf4 {[%clk 0:02:52]}  O-O {[%clk 0:02:55]} 10. O-O {[%clk 0:02:46]}  h6 {[%clk 0:02:55]} 11. Bxf6 {[%clk 0:02:46]}  Bxf6 {[%clk 0:02:56]} 12. e3 {[%clk 0:02:46]}  Be6 {[%clk 0:02:50]} 13. f3 {[%clk 0:02:46]}  exf3 {[%clk 0:02:48]} 14. Qxf3 {[%clk 0:02:46]}  Bg5 {[%clk 0:02:37]} 15. Ncxd5 {[%clk 0:02:42]}  Bxd5 {[%clk 0:02:28]} 16. Nxd5 {[%clk 0:02:35]}  Rc8 {[%clk 0:02:26]} 17. h4 {[%clk 0:02:34]}  Be7 {[%clk 0:02:25]} 18. Nxe7+ {[%clk 0:02:31]}  Qxe7 {[%clk 0:02:26]} 19. Rac1 {[%clk 0:02:26]}  Rce8 {[%clk 0:02:23]} 20. Rc3 {[%clk 0:02:25]}  Qb4 {[%clk 0:02:20]} 21. Rb3 {[%clk 0:02:23]}  Qa4 {[%clk 0:02:20]} 22. Rxb7 {[%clk 0:02:18]}  Nd8 {[%clk 0:02:20]} 23. Rxf7 {[%clk 0:02:14]}  Rxf7 {[%clk 0:02:18]} 24. Qd5 {[%clk 0:02:06]}  Qd7 {[%clk 0:02:12]} 25. Qb3 {[%clk 0:01:47]}  Kh8 {[%clk 0:02:08]} 26. Rf4 {[%clk 0:01:41]}  Rxf4 {[%clk 0:02:08]} 27. gxf4 {[%clk 0:01:42]}  Qe6 {[%clk 0:02:07]} 28. Qxe6 {[%clk 0:01:38]}  Nxe6 {[%clk 0:02:07]} 29. Kf2 {[%clk 0:01:38]}  Rb8 {[%clk 0:01:59]} 30. b3 {[%clk 0:01:36]}  Nc7 {[%clk 0:01:56]} 31. Bc6 {[%clk 0:01:31]}  Rd8 {[%clk 0:01:54]} 32. Kf3 {[%clk 0:01:29]}  Kg8 {[%clk 0:01:54]} 33. Ke4 {[%clk 0:01:27]}  Kf8 {[%clk 0:01:54]} 34. d5 {[%clk 0:01:27]}  Ke7 {[%clk 0:01:55]} 35. Ke5 {[%clk 0:01:27]}  Ne8 {[%clk 0:01:51]} 36. e4 {[%clk 0:01:23]}  Nf6 {[%clk 0:01:36]} 37. b4 {[%clk 0:01:14]}  Ng4+ {[%clk 0:01:32]} 38. Kf5 {[%clk 0:01:10]}  Ne3+ {[%clk 0:01:33]} 39. Kg6 {[%clk 0:01:09]}  Ng2 {[%clk 0:01:30]} 40. f5 {[%clk 0:01:04]}  Kf8 {[%clk 0:01:21]} 41. f6 {[%clk 0:00:47]}  Nxh4+ {[%clk 0:01:19]} 42. Kh5 {[%clk 0:00:42]}  Nf3 {[%clk 0:01:12]} 43. Kg6 {[%clk 0:00:36]}  Ne5+ {[%clk 0:01:11]} 44. Kf5 {[%clk 0:00:34]}  Nxc6 {[%clk 0:01:11]} 45. dxc6 {[%clk 0:00:35]}  gxf6 {[%clk 0:01:10]} 46. b5 {[%clk 0:00:33]}  h5 {[%clk 0:01:09]} 47. a4 {[%clk 0:00:27]}  Kf7 {[%clk 0:01:07]} 48. a5 {[%clk 0:00:25]}  Rb8 {[%clk 0:01:06]} 49. c7 {[%clk 0:00:25]}  Rxb5+ {[%clk 0:01:05]} 50. Kf4 {[%clk 0:00:23]}  Rc5 {[%clk 0:01:06]} 0-1


[Site "https://www.chess.com"]

[Event "Titled Tuesday Blitz July 4 Late 2023"]
[White "Sailer, Mike"]
[Black "Slovineanu, Viacheslav"]
[WhiteFideId "2012901"]
[BlackFideId "13900510"]
[WhiteElo "2153"]
[BlackElo "2349"]
[Result "0-1"]
[Round "10"]
[TimeControl "180+2"]
[Date "2023.07.04"]
[WhiteClock "0:00:46"]
[BlackClock "0:00:25"]
[Board "95"]

1. d4 {[%clk 0:03:00]}  Nf6 {[%clk 0:02:58]} 2. Nc3 {[%clk 0:03:00]}  d5 {[%clk 0:02:58]} 3. Bf4 {[%clk 0:03:01]}  a6 {[%clk 0:02:55]} 4. e3 {[%clk 0:02:57]}  e6 {[%clk 0:02:54]} 5. Nf3 {[%clk 0:02:57]}  c5 {[%clk 0:02:54]} 6. Ne5 {[%clk 0:02:54]}  Bd6 {[%clk 0:02:49]} 7. Be2 {[%clk 0:02:46]}  Qc7 {[%clk 0:02:48]} 8. Bg3 {[%clk 0:02:41]}  Nbd7 {[%clk 0:02:40]} 9. f4 {[%clk 0:02:36]}  b5 {[%clk 0:02:40]} 10. O-O {[%clk 0:02:35]}  b4 {[%clk 0:02:39]} 11. Nb1 {[%clk 0:02:35]}  a5 {[%clk 0:02:32]} 12. Nd2 {[%clk 0:02:34]}  Ba6 {[%clk 0:02:31]} 13. Ndf3 {[%clk 0:02:31]}  Bxe2 {[%clk 0:02:28]} 14. Qxe2 {[%clk 0:02:31]}  Ne4 {[%clk 0:02:28]} 15. Be1 {[%clk 0:02:28]}  O-O {[%clk 0:02:11]} 16. Nxd7 {[%clk 0:02:21]}  Qxd7 {[%clk 0:02:07]} 17. Ne5 {[%clk 0:02:22]}  Qc7 {[%clk 0:01:58]} 18. Rf3 {[%clk 0:02:14]}  Rfc8 {[%clk 0:01:53]} 19. Rh3 {[%clk 0:02:11]}  cxd4 {[%clk 0:01:48]} 20. exd4 {[%clk 0:02:02]}  Bxe5 {[%clk 0:01:35]} 21. fxe5 {[%clk 0:01:51]}  Qxc2 {[%clk 0:01:35]} 22. Qh5 {[%clk 0:01:47]}  h6 {[%clk 0:01:34]} 23. Rf3 {[%clk 0:01:43]}  Ra7 {[%clk 0:01:22]} 24. Bh4 {[%clk 0:01:29]}  Qxb2 {[%clk 0:01:06]} 25. Raf1 {[%clk 0:01:26]}  Qxd4+ {[%clk 0:01:01]} 26. Kh1 {[%clk 0:01:26]}  Rf8 {[%clk 0:00:58]} 27. Bf6 {[%clk 0:01:18]}  Rc7 {[%clk 0:00:39]} 28. Qg4 {[%clk 0:00:50]}  Nf2+ {[%clk 0:00:24]} 29. R3xf2 {[%clk 0:00:46]}  Qxg4 {[%clk 0:00:25]} 0-1


[Site "https://www.chess.com"]

[Event "Titled Tuesday Blitz July 4 Late 2023"]
[White "Saucey, Michel"]
[Black "Grinev, Valeriy"]
[WhiteFideId "601845"]
[BlackFideId "14117517"]
[WhiteElo "2276"]
[BlackElo "2548"]
[Result "1-0"]
[Round "10"]
[TimeControl "180+2"]
[Date "2023.07.04"]
[WhiteClock "0:00:15"]
[BlackClock "0:01:09"]
[Board "96"]

1. d4 {[%clk 0:03:00]}  d5 {[%clk 0:03:00]} 2. c4 {[%clk 0:02:59]}  Nf6 {[%clk 0:03:00]} 3. cxd5 {[%clk 0:02:58]}  Nxd5 {[%clk 0:03:01]} 4. Nf3 {[%clk 0:02:57]}  Nb6 {[%clk 0:03:02]} 5. e4 {[%clk 0:02:52]}  g6 {[%clk 0:03:03]} 6. h3 {[%clk 0:02:51]}  Bg7 {[%clk 0:03:03]} 7. Nc3 {[%clk 0:02:50]}  O-O {[%clk 0:03:04]} 8. Be3 {[%clk 0:02:50]}  Nc6 {[%clk 0:03:03]} 9. Be2 {[%clk 0:02:47]}  e5 {[%clk 0:03:03]} 10. d5 {[%clk 0:02:43]}  Ne7 {[%clk 0:02:59]} 11. g4 {[%clk 0:02:22]}  f5 {[%clk 0:02:58]} 12. gxf5 {[%clk 0:02:22]}  gxf5 {[%clk 0:02:58]} 13. Rg1 {[%clk 0:02:21]}  fxe4 {[%clk 0:02:50]} 14. Bh6 {[%clk 0:02:16]}  Nf5 {[%clk 0:02:38]} 15. Bxg7 {[%clk 0:02:15]}  Nxg7 {[%clk 0:02:36]} 16. Nd2 {[%clk 0:02:03]}  Kh8 {[%clk 0:02:35]} 17. Ndxe4 {[%clk 0:02:01]}  Nxd5 {[%clk 0:02:34]} 18. Qxd5 {[%clk 0:01:52]}  Qh4 {[%clk 0:02:34]} 19. O-O-O {[%clk 0:01:42]}  Bf5 {[%clk 0:02:25]} 20. Qxe5 {[%clk 0:01:41]}  Bg6 {[%clk 0:02:26]} 21. Bc4 {[%clk 0:01:01]}  Rae8 {[%clk 0:02:23]} 22. Qg3 {[%clk 0:01:00]}  Qh6+ {[%clk 0:02:19]} 23. Kb1 {[%clk 0:00:53]}  Bxe4+ {[%clk 0:02:16]} 24. Nxe4 {[%clk 0:00:52]}  Rxe4 {[%clk 0:02:16]} 25. Rd7 {[%clk 0:00:43]}  Rxc4 {[%clk 0:01:36]} 26. Rxg7 {[%clk 0:00:42]}  Rc1+ {[%clk 0:01:36]} 27. Rxc1 {[%clk 0:00:40]}  Qxg7 {[%clk 0:01:37]} 28. Qxg7+ {[%clk 0:00:37]}  Kxg7 {[%clk 0:01:37]} 29. Rxc7+ {[%clk 0:00:37]}  Kh6 {[%clk 0:01:34]} 30. Rxb7 {[%clk 0:00:34]}  Rxf2 {[%clk 0:01:30]} 31. Rxa7 {[%clk 0:00:34]}  Rf1+ {[%clk 0:01:28]} 32. Kc2 {[%clk 0:00:33]}  Rf2+ {[%clk 0:01:29]} 33. Kc3 {[%clk 0:00:29]}  Rf3+ {[%clk 0:01:29]} 34. Kc4 {[%clk 0:00:29]}  Rxh3 {[%clk 0:01:30]} 35. b4 {[%clk 0:00:29]}  Rh1 {[%clk 0:01:23]} 36. b5 {[%clk 0:00:25]}  Rc1+ {[%clk 0:01:24]} 37. Kb4 {[%clk 0:00:24]}  Kg6 {[%clk 0:01:25]} 38. Ra3 {[%clk 0:00:21]}  h5 {[%clk 0:01:24]} 39. b6 {[%clk 0:00:21]}  Rc8 {[%clk 0:01:20]} 40. Kb5 {[%clk 0:00:20]}  Kg5 {[%clk 0:01:18]} 41. Rb3 {[%clk 0:00:20]}  Kg4 {[%clk 0:01:19]} 42. a4 {[%clk 0:00:20]}  h4 {[%clk 0:01:18]} 43. a5 {[%clk 0:00:19]}  h3 {[%clk 0:01:19]} 44. Rxh3 {[%clk 0:00:17]}  Kxh3 {[%clk 0:01:20]} 45. b7 {[%clk 0:00:16]}  Rg8 {[%clk 0:01:18]} 46. a6 {[%clk 0:00:16]}  Kg4 {[%clk 0:01:17]} 47. a7 {[%clk 0:00:15]}  Rg5+ {[%clk 0:01:17]} 48. Kc4 {[%clk 0:00:15]}  Rg8 {[%clk 0:01:12]} 49. b8=Q {[%clk 0:00:15]}  Rxb8 {[%clk 0:01:09]} 50. axb8=Q {[%clk 0:00:15]} 1-0


[Site "https://www.chess.com"]

[Event "Titled Tuesday Blitz July 4 Late 2023"]
[White "rionelG"]
[Black "Herman, Matthew"]
[BlackFideId "2028964"]
[WhiteElo "2259"]
[BlackElo "2433"]
[Result "0-1"]
[Round "10"]
[TimeControl "180+2"]
[Date "2023.07.04"]
[WhiteClock "0:00:00"]
[BlackClock "0:02:02"]
[Board "97"]

1. e4 {[%clk 0:01:12]}  c5 {[%clk 0:02:59]} 2. g3 {[%clk 0:01:12]}  Nc6 {[%clk 0:02:59]} 3. Bg2 {[%clk 0:01:12]}  g6 {[%clk 0:03:00]} 4. Ne2 {[%clk 0:01:12]}  Bg7 {[%clk 0:03:00]} 5. c3 {[%clk 0:01:12]}  e5 {[%clk 0:03:00]} 6. d3 {[%clk 0:01:12]}  Nge7 {[%clk 0:03:00]} 7. Be3 {[%clk 0:01:13]}  b6 {[%clk 0:03:00]} 8. d4 {[%clk 0:01:13]}  exd4 {[%clk 0:02:55]} 9. cxd4 {[%clk 0:01:14]}  O-O {[%clk 0:02:55]} 10. Nbc3 {[%clk 0:01:13]}  cxd4 {[%clk 0:02:35]} 11. Nxd4 {[%clk 0:01:14]}  Ba6 {[%clk 0:02:34]} 12. Qa4 {[%clk 0:01:11]}  Qc8 {[%clk 0:02:11]} 13. Rc1 {[%clk 0:00:00]}  Ne5 {[%clk 0:02:02]} 0-1


[Site "https://www.chess.com"]

[Event "Titled Tuesday Blitz July 4 Late 2023"]
[White "Thiel, Thomas"]
[Black "Prydun, Andriy"]
[WhiteFideId "4615964"]
[BlackFideId "14145898"]
[WhiteElo "2219"]
[BlackElo "2378"]
[Result "0-1"]
[Round "10"]
[TimeControl "180+2"]
[Date "2023.07.04"]
[WhiteClock "0:00:11"]
[BlackClock "0:00:30"]
[Board "99"]

1. e4 {[%clk 0:02:58]}  c5 {[%clk 0:02:55]} 2. Nc3 {[%clk 0:02:55]}  d6 {[%clk 0:02:54]} 3. f4 {[%clk 0:02:54]}  a6 {[%clk 0:02:54]} 4. Nf3 {[%clk 0:02:54]}  g6 {[%clk 0:02:53]} 5. a4 {[%clk 0:02:50]}  b6 {[%clk 0:02:50]} 6. Bc4 {[%clk 0:02:49]}  Bg7 {[%clk 0:02:47]} 7. O-O {[%clk 0:02:48]}  Nh6 {[%clk 0:02:42]} 8. d3 {[%clk 0:02:45]}  O-O {[%clk 0:02:41]} 9. Qe1 {[%clk 0:02:42]}  Bb7 {[%clk 0:02:37]} 10. Qh4 {[%clk 0:02:40]}  e6 {[%clk 0:02:32]} 11. Qh3 {[%clk 0:02:35]}  d5 {[%clk 0:02:28]} 12. Ba2 {[%clk 0:02:31]}  b5 {[%clk 0:01:08]} 13. f5 {[%clk 0:02:30]}  Nxf5 {[%clk 0:01:06]} 14. exf5 {[%clk 0:02:28]}  gxf5 {[%clk 0:01:07]} 15. axb5 {[%clk 0:02:23]}  axb5 {[%clk 0:01:06]} 16. Nxb5 {[%clk 0:02:14]}  Qb6 {[%clk 0:01:00]} 17. Nc3 {[%clk 0:02:14]}  c4+ {[%clk 0:00:59]} 18. Kh1 {[%clk 0:02:12]}  cxd3 {[%clk 0:00:59]} 19. cxd3 {[%clk 0:02:12]}  Nc6 {[%clk 0:01:00]} 20. Bh6 {[%clk 0:02:05]}  Qxb2 {[%clk 0:00:58]} 21. Bxg7 {[%clk 0:01:25]}  Kxg7 {[%clk 0:00:57]} 22. Qg3+ {[%clk 0:01:20]}  Kh8 {[%clk 0:00:55]} 23. Qe1 {[%clk 0:00:42]}  d4 {[%clk 0:00:33]} 24. Nxd4 {[%clk 0:00:20]}  Nxd4 {[%clk 0:00:30]} 25. Qe5+ {[%clk 0:00:11]}  f6 {[%clk 0:00:30]} 0-1


[Site "https://www.chess.com"]

[Event "Titled Tuesday Blitz July 4 Late 2023"]
[White "Bazilius, Augustinas"]
[Black "Cooper, Aaron"]
[WhiteFideId "12832251"]
[BlackFideId "2634945"]
[WhiteElo "2350"]
[BlackElo "2212"]
[Result "0-1"]
[Round "10"]
[TimeControl "180+2"]
[Date "2023.07.04"]
[WhiteClock "0:00:00"]
[BlackClock "0:01:23"]
[Board "100"]

1. d4 {[%clk 0:02:54]}  Nf6 {[%clk 0:02:59]} 2. Nc3 {[%clk 0:02:53]}  d5 {[%clk 0:02:58]} 3. Bf4 {[%clk 0:02:51]}  g6 {[%clk 0:02:58]} 4. e3 {[%clk 0:02:48]}  Bg7 {[%clk 0:02:58]} 5. h4 {[%clk 0:02:49]}  a6 {[%clk 0:02:56]} 6. Nf3 {[%clk 0:02:43]}  Bg4 {[%clk 0:02:54]} 7. Be2 {[%clk 0:02:43]}  c5 {[%clk 0:02:45]} 8. dxc5 {[%clk 0:02:39]}  Qa5 {[%clk 0:02:44]} 9. Nd4 {[%clk 0:01:59]}  Bxe2 {[%clk 0:02:38]} 10. Qxe2 {[%clk 0:01:59]}  Ne4 {[%clk 0:02:34]} 11. O-O {[%clk 0:01:47]}  Nxc3 {[%clk 0:02:31]} 12. bxc3 {[%clk 0:01:48]}  Qxc5 {[%clk 0:02:22]} 13. Rab1 {[%clk 0:01:43]}  b6 {[%clk 0:02:10]} 14. c4 {[%clk 0:01:13]}  O-O {[%clk 0:01:56]} 15. cxd5 {[%clk 0:01:11]}  Qxd5 {[%clk 0:01:46]} 16. Rxb6 {[%clk 0:01:04]}  e5 {[%clk 0:01:40]} 17. c4 {[%clk 0:00:41]}  Qc5 {[%clk 0:01:30]} 18. Rb7 {[%clk 0:00:06]}  exd4 {[%clk 0:01:29]} 19. exd4 {[%clk 0:00:03]}  Qxd4 {[%clk 0:01:26]} 20. Rd1 {[%clk 0:00:03]}  Qxf4 {[%clk 0:01:25]} 21. Qc2 {[%clk 0:00:01]}  Nc6 {[%clk 0:01:24]} 22. Rb6 {[%clk 0:00:00]}  Ne5 {[%clk 0:01:23]} 0-1


[Site "https://www.chess.com"]

[Event "Titled Tuesday Blitz July 4 Late 2023"]
[White "Zhou, Qiyu"]
[Black "Ferriz Barrios, Andres"]
[WhiteFideId "505161"]
[BlackFideId "5104467"]
[WhiteElo "2349"]
[BlackElo "2198"]
[Result "1-0"]
[Round "10"]
[TimeControl "180+2"]
[Date "2023.07.04"]
[WhiteClock "0:00:04"]
[BlackClock "0:00:48"]
[Board "101"]

1. e4 {[%clk 0:03:00]}  e6 {[%clk 0:02:58]} 2. d4 {[%clk 0:03:00]}  d5 {[%clk 0:02:59]} 3. Nc3 {[%clk 0:02:57]}  dxe4 {[%clk 0:02:59]} 4. Nxe4 {[%clk 0:02:58]}  Nd7 {[%clk 0:02:59]} 5. Nf3 {[%clk 0:02:57]}  Ngf6 {[%clk 0:02:57]} 6. Bd3 {[%clk 0:02:57]}  b6 {[%clk 0:02:52]} 7. c3 {[%clk 0:02:55]}  Bb7 {[%clk 0:02:51]} 8. Qc2 {[%clk 0:02:55]}  Be7 {[%clk 0:02:50]} 9. Be3 {[%clk 0:02:45]}  O-O {[%clk 0:02:49]} 10. O-O-O {[%clk 0:02:45]}  Re8 {[%clk 0:02:47]} 11. Rhg1 {[%clk 0:02:40]}  Nxe4 {[%clk 0:02:47]} 12. Bxe4 {[%clk 0:02:41]}  Bxe4 {[%clk 0:02:47]} 13. Qxe4 {[%clk 0:02:42]}  Nf6 {[%clk 0:02:48]} 14. Qc2 {[%clk 0:02:39]}  Qd5 {[%clk 0:02:48]} 15. Kb1 {[%clk 0:02:38]}  Qe4 {[%clk 0:02:47]} 16. Nd2 {[%clk 0:02:38]}  Qxc2+ {[%clk 0:02:46]} 17. Kxc2 {[%clk 0:02:37]}  Rad8 {[%clk 0:02:47]} 18. f3 {[%clk 0:02:37]}  Nd5 {[%clk 0:02:46]} 19. Bf2 {[%clk 0:02:37]}  c5 {[%clk 0:02:47]} 20. dxc5 {[%clk 0:02:35]}  Bxc5 {[%clk 0:02:44]} 21. Bxc5 {[%clk 0:02:32]}  bxc5 {[%clk 0:02:45]} 22. Nc4 {[%clk 0:02:32]}  Rb8 {[%clk 0:02:42]} 23. b3 {[%clk 0:02:32]}  Red8 {[%clk 0:02:31]} 24. Rd2 {[%clk 0:02:21]}  a5 {[%clk 0:02:25]} 25. a4 {[%clk 0:01:58]}  Rd7 {[%clk 0:02:15]} 26. Rgd1 {[%clk 0:01:57]}  Ra7 {[%clk 0:02:11]} 27. Rd3 {[%clk 0:01:43]}  g6 {[%clk 0:02:09]} 28. g3 {[%clk 0:01:42]}  Re7 {[%clk 0:02:00]} 29. Ne3 {[%clk 0:01:41]}  Nxe3+ {[%clk 0:01:48]} 30. Rxe3 {[%clk 0:01:42]}  Reb7 {[%clk 0:01:48]} 31. c4 {[%clk 0:01:41]}  Kg7 {[%clk 0:01:46]} 32. Rd6 {[%clk 0:01:37]}  Rb6 {[%clk 0:01:45]} 33. Red3 {[%clk 0:01:36]}  Kf6 {[%clk 0:01:45]} 34. Rxb6 {[%clk 0:01:31]}  Rxb6 {[%clk 0:01:46]} 35. Kc3 {[%clk 0:01:31]}  Ke5 {[%clk 0:01:45]} 36. Re3+ {[%clk 0:01:29]}  Kd6 {[%clk 0:01:45]} 37. Rd3+ {[%clk 0:01:29]}  Ke5 {[%clk 0:01:46]} 38. Rd8 {[%clk 0:01:29]}  Rd6 {[%clk 0:01:43]} 39. Ra8 {[%clk 0:01:20]}  Rd1 {[%clk 0:01:38]} 40. Rxa5 {[%clk 0:01:19]}  Kd6 {[%clk 0:01:38]} 41. Ra6+ {[%clk 0:01:17]}  Kc7 {[%clk 0:01:38]} 42. Ra7+ {[%clk 0:01:16]}  Kb6 {[%clk 0:01:38]} 43. Rxf7 {[%clk 0:01:15]}  Rh1 {[%clk 0:01:39]} 44. Rxh7 {[%clk 0:01:10]}  Rf1 {[%clk 0:01:38]} 45. Rf7 {[%clk 0:01:10]}  g5 {[%clk 0:01:36]} 46. Rf6 {[%clk 0:01:05]}  Ka5 {[%clk 0:01:35]} 47. f4 {[%clk 0:00:52]}  Rf3+ {[%clk 0:01:35]} 48. Kb2 {[%clk 0:00:52]}  gxf4 {[%clk 0:01:32]} 49. Rxf4 {[%clk 0:00:51]}  Re3 {[%clk 0:01:32]} 50. Rf8 {[%clk 0:00:43]}  Re2+ {[%clk 0:01:28]} 51. Ka3 {[%clk 0:00:36]}  Rxh2 {[%clk 0:01:29]} 52. Ra8+ {[%clk 0:00:33]}  Kb6 {[%clk 0:01:29]} 53. Rb8+ {[%clk 0:00:34]}  Kc7 {[%clk 0:01:28]} 54. Re8 {[%clk 0:00:31]}  Kd7 {[%clk 0:01:28]} 55. Rg8 {[%clk 0:00:29]}  Rh1 {[%clk 0:01:25]} 56. Kb2 {[%clk 0:00:27]}  Rh2+ {[%clk 0:01:25]} 57. Kc3 {[%clk 0:00:27]}  Rf2 {[%clk 0:01:24]} 58. Rg7+ {[%clk 0:00:21]}  Kd6 {[%clk 0:01:25]} 59. Rg4 {[%clk 0:00:20]}  Kc6 {[%clk 0:01:22]} 60. Rf4 {[%clk 0:00:17]}  Rg2 {[%clk 0:01:19]} 61. Rf3 {[%clk 0:00:16]}  e5 {[%clk 0:01:17]} 62. Re3 {[%clk 0:00:15]}  Kb6 {[%clk 0:01:15]} 63. Rxe5 {[%clk 0:00:12]}  Rxg3+ {[%clk 0:01:15]} 64. Kb2 {[%clk 0:00:13]}  Rg2+ {[%clk 0:01:14]} 65. Ka3 {[%clk 0:00:13]}  Rh2 {[%clk 0:01:13]} 66. Re6+ {[%clk 0:00:11]}  Ka5 {[%clk 0:01:13]} 67. Re8 {[%clk 0:00:09]}  Rh1 {[%clk 0:01:10]} 68. Ra8+ {[%clk 0:00:09]}  Kb6 {[%clk 0:01:11]} 69. Rb8+ {[%clk 0:00:09]}  Kc7 {[%clk 0:01:11]} 70. Rb5 {[%clk 0:00:09]}  Kc6 {[%clk 0:01:11]} 71. a5 {[%clk 0:00:07]}  Ra1+ {[%clk 0:01:11]} 72. Kb2 {[%clk 0:00:07]}  Rh1 {[%clk 0:01:11]} 73. Rb6+ {[%clk 0:00:06]}  Kc7 {[%clk 0:01:11]} 74. Kc3 {[%clk 0:00:06]}  Rh3+ {[%clk 0:01:10]} 75. Kc2 {[%clk 0:00:06]}  Rh2+ {[%clk 0:01:11]} 76. Kd3 {[%clk 0:00:06]}  Ra2 {[%clk 0:01:12]} 77. Rb5 {[%clk 0:00:06]}  Kc6 {[%clk 0:01:12]} 78. Ke4 {[%clk 0:00:05]}  Re2+ {[%clk 0:01:12]} 79. Kd3 {[%clk 0:00:06]}  Ra2 {[%clk 0:01:12]} 80. Ke4 {[%clk 0:00:05]}  Re2+ {[%clk 0:01:10]} 81. Kf5 {[%clk 0:00:04]}  Ra2 {[%clk 0:01:11]} 82. Ke6 {[%clk 0:00:04]}  Re2+ {[%clk 0:01:11]} 83. Kf7 {[%clk 0:00:05]}  Ra2 {[%clk 0:01:12]} 84. Ke8 {[%clk 0:00:05]}  Re2+ {[%clk 0:01:07]} 85. Kd8 {[%clk 0:00:05]}  Ra2 {[%clk 0:01:07]} 86. Kc8 {[%clk 0:00:04]}  Kd6 {[%clk 0:01:03]} 87. Kb7 {[%clk 0:00:03]}  Rg2 {[%clk 0:00:58]} 88. a6 {[%clk 0:00:03]}  Rg7+ {[%clk 0:00:59]} 89. Kb6 {[%clk 0:00:04]}  Rc7 {[%clk 0:00:52]} 90. a7 {[%clk 0:00:02]}  Rc6+ {[%clk 0:00:53]} 91. Kb7 {[%clk 0:00:02]}  Rc7+ {[%clk 0:00:54]} 92. Ka6 {[%clk 0:00:03]}  Rc8 {[%clk 0:00:50]} 93. Rb8 {[%clk 0:00:03]}  Rc6+ {[%clk 0:00:50]} 94. Rb6 {[%clk 0:00:04]}  Rxb6+ {[%clk 0:00:48]} 95. Kxb6 {[%clk 0:00:04]} 1-0


[Site "https://www.chess.com"]

[Event "Titled Tuesday Blitz July 4 Late 2023"]
[White "Hartikainen, Jarmo"]
[Black "Shapiro, Daniel"]
[WhiteFideId "503134"]
[BlackFideId "2001780"]
[WhiteElo "2171"]
[BlackElo "2335"]
[Result "0-1"]
[Round "10"]
[TimeControl "180+2"]
[Date "2023.07.04"]
[WhiteClock "0:00:00"]
[BlackClock "0:00:31"]
[Board "103"]

1. e4 {[%clk 0:03:00]}  e5 {[%clk 0:02:59]} 2. Nf3 {[%clk 0:03:00]}  Nc6 {[%clk 0:02:59]} 3. Bc4 {[%clk 0:02:59]}  Be7 {[%clk 0:02:59]} 4. c3 {[%clk 0:02:59]}  Nf6 {[%clk 0:02:58]} 5. Qe2 {[%clk 0:02:59]}  a6 {[%clk 0:02:55]} 6. a4 {[%clk 0:02:53]}  O-O {[%clk 0:02:53]} 7. O-O {[%clk 0:02:32]}  h6 {[%clk 0:02:53]} 8. h3 {[%clk 0:02:30]}  Re8 {[%clk 0:02:52]} 9. d4 {[%clk 0:02:18]}  d6 {[%clk 0:02:27]} 10. Rd1 {[%clk 0:01:33]}  Bf8 {[%clk 0:02:25]} 11. d5 {[%clk 0:01:09]}  Nb8 {[%clk 0:02:23]} 12. Nbd2 {[%clk 0:01:04]}  g6 {[%clk 0:02:19]} 13. Nf1 {[%clk 0:01:03]}  Nh5 {[%clk 0:02:16]} 14. Ng3 {[%clk 0:00:59]}  Nf4 {[%clk 0:02:11]} 15. Bxf4 {[%clk 0:00:33]}  exf4 {[%clk 0:02:10]} 16. Nf1 {[%clk 0:00:34]}  Nd7 {[%clk 0:02:07]} 17. Bd3 {[%clk 0:00:29]}  Bg7 {[%clk 0:02:06]} 18. Bc2 {[%clk 0:00:28]}  Ne5 {[%clk 0:02:06]} 19. Nxe5 {[%clk 0:00:28]}  Bxe5 {[%clk 0:02:06]} 20. Nh2 {[%clk 0:00:28]}  Bd7 {[%clk 0:01:49]} 21. Nf3 {[%clk 0:00:27]}  Bg7 {[%clk 0:01:49]} 22. Nd4 {[%clk 0:00:27]}  Qf6 {[%clk 0:01:36]} 23. f3 {[%clk 0:00:26]}  g5 {[%clk 0:01:35]} 24. Re1 {[%clk 0:00:22]}  h5 {[%clk 0:01:35]} 25. Rad1 {[%clk 0:00:18]}  Re5 {[%clk 0:01:18]} 26. c4 {[%clk 0:00:16]}  Rae8 {[%clk 0:01:13]} 27. b4 {[%clk 0:00:15]}  g4 {[%clk 0:01:12]} 28. hxg4 {[%clk 0:00:11]}  hxg4 {[%clk 0:01:12]} 29. Kf1 {[%clk 0:00:08]}  Qh4 {[%clk 0:01:00]} 30. Qf2 {[%clk 0:00:08]}  Qh6 {[%clk 0:00:35]} 31. Ke2 {[%clk 0:00:07]}  f5 {[%clk 0:00:33]} 32. Rh1 {[%clk 0:00:06]}  Qg5 {[%clk 0:00:31]} 33. Kd3 {[%clk 0:00:04]}  fxe4+ {[%clk 0:00:31]} 34. fxe4 {[%clk 0:00:04]}  Rxe4 {[%clk 0:00:31]} 35. Qh4 {[%clk 0:00:00]}  Rxd4+ {[%clk 0:00:31]} 0-1


[Site "https://www.chess.com"]